fUSD/lending_fUSD_20250628
["ID","MTS","AMOUNT","RATE_DAILY","PERIOD"]
[368301659,1751103040716,-7149.62387859,0.00037248,30]
[368301661,1751103040725,-973.32792991,0.00037348,36]
[368301663,1751103040734,-1000.0,0.00037396,2]
[368301665,1751103040743,-265.1,0.00037417,2]
[368301667,1751103040753,-440.527037,0.00037428,16]
[368301669,1751103040762,-374.01,0.00037487,2]
[368301671,1751103040771,-153.03,0.000375,31]
[368301673,1751103040780,-153.03,0.000375,31]
[368301675,1751103040789,-500.85,0.000375,7]
[368301676,1751103040799,-835.41973025,0.00037576,2]
[368301679,1751103040808,-207.0,0.00037651,23]
[368301680,1751103040818,-231.0,0.00037731,120]
[368301682,1751103040827,-973.32792991,0.00037797,37]
[368301684,1751103040837,-590.2,0.00037806,2]
[368301686,1751103040846,-200.0,0.00038178,10]
[368301688,1751103040855,-708.03507,0.0003818,2]
[368301690,1751103040865,-973.32792991,0.00038245,38]
[368301692,1751103040874,-1196.28,0.0003829,17]
[368301694,1751103040884,-200.0,0.000383,13]
[368301696,1751103040893,-207.4,0.00038361,2]
[368301698,1751103040903,-1908.31745153,0.00038361,2]
[368301700,1751103040913,-300.0,0.00038383,5]
[368301702,1751103040922,-803.0,0.00038384,2]
[368301704,1751103040932,-1678.0,0.00038384,2]
[368301706,1751103040941,-559.0,0.00038384,2]
[368301708,1751103040951,-929.0,0.00038384,2]
[368301710,1751103040960,-1280.0,0.00038384,2]
[368301712,1751103040970,-592.0,0.00038384,2]
[368301714,1751103040979,-3419.553,0.00038384,2]
[368301716,1751103040988,-156.0,0.00038384,2]
[368301718,1751103040998,-1093.363,0.00038384,2]
[368301720,1751103041008,-500.0,0.000384,14]
[368301722,1751103041017,-232.0,0.00038444,7]
[368301724,1751103041027,-293.52620043,0.00038478,2]
[368301726,1751103041036,-293.52620043,0.00038479,2]
[368301728,1751103041046,-293.52620043,0.00038481,2]
[368301730,1751103041055,-293.52620043,0.00038482,2]
[368301732,1751103041064,-293.52620043,0.00038483,2]
[368301734,1751103041074,-293.52620043,0.00038485,2]
[368301735,1751103041083,-293.52620043,0.00038486,2]
[368301736,1751103041092,-293.52620043,0.00038487,2]
[368301737,1751103041102,-293.52620043,0.00038489,2]
[368301738,1751103041110,-161.48762924,0.0003849,2]
[368301739,1751103041119,-6630.9791942,0.0003849,2]
[368301740,1751103041128,-524.75731748,0.0003849,2]
[368301741,1751103041138,-293.52620043,0.0003849,2]
[368301742,1751103041147,-652.60772494,0.000385,14]
[368301743,1751103041159,-47.39227506,0.000385,14]
[368301744,1751103041169,-167.22072305,0.00038558,2]
[368301745,1751103041178,-16712.89184651,0.00038564,8]
[368301746,1751103041189,-336.59787849,0.00038564,8]
[368301747,1751103041205,-536.85,0.00038564,8]
[368301748,1751103041216,-1578.65260005,0.00038564,8]
[368301749,1751103041227,-1368.71485914,0.00038564,8]
[368301972,1751103043275,-2368.98912435,0.00038564,8]
[368301979,1751103043332,-2561.12740704,0.00038564,8]
[368301981,1751103043343,-1007.0,0.00038564,8]
[368301987,1751103043388,-289.03402449,0.00038564,8]
[368301989,1751103043399,-31578.0,0.00038564,8]
[368301995,1751103043444,-1000.0,0.00038564,8]
[368302323,1751103046462,-2604.09010441,0.00038564,8]
[368302330,1751103046517,-700.0,0.00038564,8]
[368302486,1751103123413,300.0,0.00026665,120]
[368302487,1751103240849,300.0,0.00026665,120]
[368302488,1751103724765,158.79,0.00013699,2]
[368302501,1751104160104,-201.88,0.00019501,2]
[368302505,1751104232368,-17.12,0.00019501,2]
[368302506,1751104232606,-1146.0,0.00023901,2]
[368302507,1751104232627,-653.18494443,0.00023901,2]
[368302508,1751104232637,-219.0,0.00024001,8]
[368302509,1751104232646,-219.0,0.00028501,14]
[368302510,1751104232655,-151.0,0.00029,120]
[368302511,1751104232665,-219.0,0.00033001,21]
[368302512,1751104232675,-175.34,0.00033457,2]
[368302513,1751104232684,-153.05,0.000335,31]
[368302514,1751104232694,-207.0,0.0003361,2]
[368302515,1751104232703,-207.0,0.0003464,2]
[368302516,1751104232712,-151.0,0.000352,120]
[368302517,1751104232722,-76.31508245,0.0003568,2]
[368302519,1751104232763,-130.68491755,0.0003568,2]
[368302521,1751104232773,-170.16,0.00035874,2]
[368302523,1751104232782,-168.19,0.00035905,120]
[368302524,1751104232791,-500.0,0.0003622,2]
[368302525,1751104232801,-283.0,0.00036243,2]
[368302526,1751104232810,-207.0,0.0003672,2]
[368302528,1751104232820,-226.62,0.00036797,2]
[368302530,1751104232829,-1047.99610444,0.00036899,2]
[368302532,1751104232838,-843.55087284,0.000369,35]
[368302534,1751104232847,-1600.0,0.00036903,3]
[368302535,1751104232857,-283.0,0.00036905,7]
[368302538,1751104232866,-5288.24330517,0.00036905,2]
[368302542,1751104232896,-597.44669483,0.00036905,2]
[368302544,1751104232905,-1574.51272777,0.0003694,2]
[368302554,1751104232989,-2061.97254873,0.0003694,2]
[368302556,1751104232999,-500.0,0.00036973,5]
[368302557,1751104233009,-175.3112351,0.00036973,5]
[368302560,1751104233020,-420.82722371,0.00036973,5]
[368302562,1751104233030,-46740.09385924,0.0003699,2]
[368302563,1751104233040,-155.794,0.00036999,47]
[368302566,1751104233050,-100000.0,0.00037,3]
[368302568,1751104233060,-169.0,0.00037,30]
[368302570,1751104233070,-1000.0,0.0003704,2]
[368302572,1751104233079,-3636.48527642,0.00037113,2]
[368302574,1751104233089,-663.84,0.00037127,2]
[368302576,1751104233101,-3636.48527642,0.00037287,2]
[368302578,1751104233110,-965.48,0.00037311,2]
[368302580,1751104233119,-843.55087258,0.00037348,36]
[368302582,1751104233129,-330.395278,0.00037428,16]
[368302584,1751104233139,-180.18,0.00037437,2]
[368302585,1751104233149,-3636.48527642,0.0003746,2]
[368302586,1751104233158,-9354.08984965,0.00037495,2]
[368302587,1751104233168,-207.4,0.00037495,2]
[368302588,1751104233178,-153.05,0.000375,31]
[368302589,1751104233187,-153.05,0.000375,31]
[368302590,1751104233197,-219.0,0.00037501,27]
[368302591,1751104233207,-6686.91,0.00037518,2]
[368302592,1751104233217,-825.89345533,0.00037521,5]
[368302593,1751104233227,-168.19,0.00037584,120]
[368302594,1751104233236,-283.0,0.00037585,120]
[368302595,1751104233246,-3636.48527642,0.00037634,2]
[368302596,1751104233256,-207.0,0.0003776,2]
[368302597,1751104233266,-843.55087258,0.00037797,37]
[368302598,1751104233276,-3636.48527642,0.00037807,2]
[368302599,1751104233285,-388.73238539,0.000379,2]
[368302600,1751104233294,-388.73238527,0.000379,2]
[368302601,1751104233304,-388.73238527,0.000379,2]
[368302602,1751104233313,-388.73238527,0.000379,2]
[368302603,1751104233323,-388.73238527,0.000379,2]
[368302604,1751104233335,-388.73238527,0.000379,2]
[368302605,1751104233345,-388.73238527,0.000379,2]
[368302606,1751104233355,-388.73238527,0.000379,2]
[368302607,1751104233364,-388.73238527,0.000379,2]
[368302608,1751104233374,-388.73238527,0.000379,2]
[368302609,1751104233383,-388.73238527,0.000379,2]
[368302610,1751104233392,-388.73238527,0.000379,2]
[368302611,1751104233401,-388.73238527,0.00037911,2]
[368302612,1751104233411,-3636.48527642,0.00037981,2]
[368302613,1751104233420,-211.4588122,0.00038054,2]
[368302614,1751104233429,-3636.48527642,0.00038154,2]
[368302615,1751104233438,-843.55087258,0.00038245,38]
[368302616,1751104233448,-200.0,0.00038277,10]
[368302617,1751104233457,-3636.48527642,0.00038328,2]
[368302618,1751104233467,-835.41973025,0.00038365,2]
[368302619,1751104233477,-168.1,0.00038376,2]
[368302620,1751104233487,-947.0,0.00038386,2]
[368302621,1751104233497,-3344.647,0.00038386,2]
[368302622,1751104233506,-934.091,0.00038386,2]
[368302623,1751104233516,-562.033,0.00038386,2]
[368302624,1751104233525,-1195.106,0.00038386,2]
[368302625,1751104233535,-156.0,0.00038386,2]
[368302626,1751104233544,-269.44723056,0.00038432,2]
[368302627,1751104233554,-166.55,0.00038432,2]
[368302628,1751104233563,-300.0,0.00038432,2]
[368302629,1751104233572,-286.54,0.00038432,2]
[368302630,1751104233582,-500.0,0.00038432,2]
[368302631,1751104233591,-500.0,0.00038432,2]
[368302632,1751104233601,-426.4807781,0.00038432,2]
[368302633,1751104233610,-168.80127508,0.00038473,2]
[368302634,1751104233620,-1748.17914187,0.00038478,2]
[368302635,1751104233632,-16478.53375813,0.00038478,2]
[368302636,1751104233642,-184.42509732,0.00038489,12]
[368302637,1751104233651,-161.48762924,0.00038489,2]
[368302638,1751104233661,-4496.3896,0.00038489,2]
[368302639,1751104233670,-500.0,0.000385,15]
[368302640,1751104233680,-410.421803,0.000385,15]
[368302641,1751104233689,-194.84956076,0.000385,15]
[368302642,1751104233698,-500.0,0.000385,15]
[368302643,1751104233707,-500.0,0.000385,15]
[368302644,1751104233717,-500.0,0.000385,15]
[368302645,1751104233727,-500.0,0.000385,15]
[368302646,1751104233736,-500.0,0.000385,15]
[368302647,1751104233746,-500.0,0.000385,15]
[368302648,1751104233756,-288.30330332,0.000385,15]
[368302649,1751104233765,-349.83821166,0.00038501,2]
[368302650,1751104233778,-3636.48527642,0.00038501,2]
[368302651,1751104233788,-4420.65279614,0.00038501,2]
[368302652,1751104233798,-493.5655506,0.00038556,15]
[368302653,1751104233808,-454.6489751,0.00038556,15]
[368302654,1751104233817,-457.65087368,0.00038556,15]
[368302655,1751104233826,-500.0,0.00038556,15]
[368302656,1751104233836,-500.0,0.00038556,15]
[368302657,1751104233846,-500.0,0.00038556,15]
[368302658,1751104233856,-500.0,0.00038556,15]
[368302659,1751104233865,-500.0,0.00038556,15]
[368302660,1751104233874,-500.0,0.00038556,15]
[368302661,1751104233884,-500.0,0.00038556,15]
[368302662,1751104233893,-500.0,0.00038556,15]
[368302663,1751104233902,-500.0,0.00038556,15]
[368302664,1751104233912,-500.0,0.00038556,15]
[368302665,1751104233922,-500.0,0.00038556,15]
[368302666,1751104233931,-500.0,0.00038556,15]
[368302667,1751104233941,-500.0,0.00038556,15]
[368302668,1751104233950,-500.0,0.00038556,15]
[368302669,1751104233959,-179350.38115132,0.00038557,7]
[368302670,1751104233971,-205588.95229229,0.00038557,7]
[368302671,1751104238278,-501.91416205,0.00036999,15]
[368302672,1751104238288,-388.73238527,0.00037995,2]
[368302673,1751104238297,-1162.0,0.00038386,2]
[368302674,1751104238307,-500.0,0.000385,15]
[368302675,1751104238316,-500.0,0.000385,15]
[368302676,1751104238325,-500.0,0.000385,15]
[368302677,1751104238334,-500.0,0.00038556,15]
[368302678,1751104238344,-323.58633967,0.00038556,15]
[368302679,1751104238381,-176.41366033,0.00038556,15]
[368302680,1751104238391,-500.0,0.00038556,15]
[368302681,1751104238400,-500.0,0.00038556,15]
[368302682,1751104238409,-500.0,0.00038556,15]
[368302683,1751104238419,-500.0,0.00038556,15]
[368302684,1751104238428,-500.0,0.00038556,15]
[368302685,1751104238437,-339.3743744,0.00038556,15]
[368302686,1751104238446,-500.0,0.00038556,15]
[368302687,1751104238455,-500.0,0.00038556,15]
[368302688,1751104238464,-500.0,0.00038556,15]
[368302689,1751104238473,-1231.20768527,0.00038557,7]
[368302690,1751104238591,-5627.80498617,0.00038557,7]
[368302691,1751104238602,-490.0,0.00038557,7]
[368302865,1751104240567,-388.73238527,0.0003808,2]
[368302867,1751104240577,-1929.19720391,0.00038557,7]
[368302869,1751104240589,-10238.5967195,0.00038557,7]
[368302871,1751104240601,-3008.14923477,0.00038557,7]
[368302873,1751104240612,-10751.91157077,0.00038557,7]
[368302875,1751104240628,-571.34960685,0.00038557,7]
[368302916,1751104241042,-8563.19379293,0.00038557,7]
[368302926,1751104241147,-764.745945,0.00038557,7]
[368302932,1751104241202,-913.303,0.00038557,7]
[368302934,1751104241213,-853.90440044,0.00038557,7]
[368303144,1751104243395,-280.30303109,0.00038458,2]
[368303146,1751104243407,-735.915,0.00038458,2]
[368303151,1751104243448,-429.26736985,0.00038458,2]
[368303158,1751104243502,-1906.05628709,0.00038458,2]
[368303173,1751104243637,-3993.28622907,0.00038458,2]
[368303175,1751104243647,-86417.76787613,0.00038557,7]
[368303183,1751104243716,-584.08939543,0.00038557,7]
[368303452,1751104246376,-231.87,0.00033216,2]
[368303454,1751104246386,-388.73238527,0.00038164,2]
[368303456,1751104246395,-5308.68778523,0.00038557,7]
[368303458,1751104246406,-914.60609261,0.00038557,7]
[368303460,1751104246419,-294.64,0.00038557,7]
[368303463,1751104246432,-323.57617519,0.00038557,7]
[368303465,1751104246443,-40461.32298254,0.00038557,7]
[368303476,1751104246538,-1312.72801959,0.00038557,7]
[368303478,1751104246550,-2275.0,0.00038557,7]
[368303545,1751104247197,-1073.0,0.00038557,7]
[368303719,1751104421416,214.0,0.00017921,2]
[368303720,1751104421667,214.0,0.00023932,10]
[368303728,1751104704937,158.79,0.00013699,2]
[368303735,1751104998531,34456.35741333,0.0002739,120]
[368303736,1751105133865,150.0,0.00019,2]
[368303752,1751105345078,-245.05353797,0.00021081,2]
[368303753,1751105345097,-286.12329889,0.00025,3]
[368303762,1751105431660,-57.23670111,0.00025,3]
[368303763,1751105431670,-214.0,0.00026783,2]
[368303764,1751105431680,-505.0,0.00027479,2]
[368303765,1751105431690,-268.0,0.000301,7]
[368303766,1751105431700,-200.0,0.00031,7]
[368303767,1751105431710,-200.0,0.000321,7]
[368303768,1751105431720,-200.0,0.000331,7]
[368303769,1751105431731,-214.0,0.00033427,13]
[368303770,1751105431741,-200.0,0.000351,7]
[368303771,1751105431753,-260.0,0.00035237,2]
[368303772,1751105431762,-274.11249089,0.0003664,2]
[368303773,1751105431819,-887.88750911,0.0003664,2]
[368303774,1751105431835,-367.45992555,0.00037017,2]
[368303775,1751105431847,-1073.6,0.00037017,2]
[368303776,1751105431873,-2697.53832,0.00037017,2]
[368303911,1751105437697,-1042.42108382,0.00037017,2]
[368303912,1751105437813,-457.36912179,0.00037017,2]
[368303913,1751105437855,-4026.3938299,0.00037017,2]
[368304113,1751105439965,-300.87149143,0.00037017,2]
[368304119,1751105440046,-376.22803557,0.00037017,2]
[368304379,1751105442595,-381.52,0.00037017,2]
[368304386,1751105442649,-2865.09061974,0.00037017,2]
[368304392,1751105442702,-10301.5075722,0.00037017,2]
[368304394,1751105442712,-1000.0,0.00037345,2]
[368304396,1751105442721,-711.86,0.00037378,2]
[368304399,1751105442731,-247.796458,0.00037408,16]
[368304401,1751105442740,-172.04665447,0.00037448,2]
[368304403,1751105442752,-493.95334553,0.00037448,2]
[368304405,1751105442762,-200.0,0.00037526,7]
[368304407,1751105442771,-200.0,0.00037545,2]
[368304409,1751105442780,-1136.40925082,0.00037897,3]
[368304691,1751105445623,-463.59074918,0.00037897,3]
[368304693,1751105445633,-300.0,0.00037898,3]
[368304695,1751105445644,-300.0,0.00037898,2]
[368304697,1751105445655,-1396.8570534,0.00037899,2]
[368304700,1751105445676,-422.3538,0.00037899,2]
[368304703,1751105445687,-282.78234949,0.00037899,2]
[368304713,1751105445783,-324.15296751,0.00037899,2]
[368304716,1751105445795,-598.5,0.00037899,2]
[368304718,1751105445806,-589.44000002,0.00037899,2]
[368304719,1751105445895,-319.71793998,0.00037899,2]
[368305312,1751105647970,384.246408,7.945e-05,2]
[368305313,1751105837721,274.94,0.00013699,2]
[368305315,1751105983130,200.93342416,0.00018905,2]
[368305316,1751106199454,200.0,0.00018754,2]
[368305317,1751106227240,187.48,0.00016712,2]
[368305318,1751106231727,250.0,0.00015,2]
[368305320,1751106232809,300.0,0.00017,2]
[368305321,1751106309027,4166.64657584,0.00014,2]
[368305322,1751106309051,1411.40872391,0.00014,2]
[368305323,1751106309075,20000.0,0.00014,2]
[368305324,1751106309097,20000.0,0.00014,2]
[368305325,1751106309119,20000.0,0.00014,2]
[368305326,1751106309142,20000.0,0.00014,2]
[368305327,1751106309165,14883.23140809,0.00014,2]
[368305329,1751106407078,-195.17200659,0.00019,2]
[368305331,1751106428099,2594.1704224,0.00016435,2]
[368305333,1751106457336,1627.3430832,0.00018,2]
[368305335,1751106478653,895.25508631,0.00014,2]
[368305336,1751106478679,20000.0,0.00014,2]
[368305337,1751106478703,20000.0,0.00014,2]
[368305338,1751106478727,20000.0,0.00014,2]
[368305339,1751106478750,20000.0,0.00014,2]
[368305340,1751106478774,20000.0,0.00014,2]
[368305341,1751106478799,175.48396789,0.00014,2]
[368305343,1751106505445,381.74767697,7.888e-05,2]
[368305346,1751106518956,3476.039999,0.000151,2]
[368305355,1751106561064,-154.30434362,0.000189,2]
[368305356,1751106561085,-162.0,0.00018999,2]
[368305357,1751106561106,-154.82799341,0.00019,2]
[368305358,1751106561125,-3469.86906297,0.00019,2]
[368305369,1751106631907,-182.23600549,0.000189,2]
[368305370,1751106631917,-462.0,0.00018999,2]
[368305371,1751106631926,-37.93350177,0.00019,2]
[368305372,1751106631960,-24533.72035174,0.00019,2]
[368305373,1751106631969,-4030.39291075,0.00019,2]
[368305374,1751106631979,-28099.92745033,0.000194,2]
[368305375,1751106631990,-273.52255812,0.000199,2]
[368305376,1751106632001,-4785.11678304,0.000199,3]
[368305377,1751106632012,-1856.79532021,0.0002,2]
[368305378,1751106632022,-13871.55574314,0.0002,2]
[368305379,1751106632031,-428.08094925,0.0002,2]
[368305380,1751106632044,-274.94,0.00020187,2]
[368305381,1751106632053,-400.0,0.00021,2]
[368305382,1751106632063,-1119.55186197,0.00022,5]
[368305383,1751106632072,-2996.99150098,0.00022,2]
[368305384,1751106632082,-2269.90402133,0.00022922,2]
[368305385,1751106632091,-450.0,0.00023,2]
[368305386,1751106632100,-1148.34169016,0.000232,2]
[368305387,1751106632109,-809.25514898,0.00024,2]
[368305388,1751106632121,-6512.07818172,0.00024,2]
[368305396,1751106635929,591.09855092,0.00023,120]
[368305400,1751106637813,-4050.66708997,0.00024,2]
[368305401,1751106637827,-3534.17470216,0.00024,2]
[368305402,1751106637839,-652.29846882,0.00024,2]
[368305403,1751106637855,-832.25,0.00024,2]
[368305404,1751106637867,-2499.48258898,0.00024,2]
[368305405,1751106637876,-444.35983449,0.00024,5]
[368305406,1751106637890,-4555.64476229,0.00024,5]
[368305407,1751106637900,-953.27572824,0.00025,2]
[368305408,1751106637916,-818.775,0.00025,2]
[368305409,1751106637928,-607.8,0.00025,2]
[368305410,1751106637951,-318.90485995,0.00025,2]
[368305411,1751106637962,-543.48961775,0.00025,2]
[368305412,1751106638008,-4403.71790361,0.00025,2]
[368305413,1751106638018,-609.0,0.00026,2]
[368305414,1751106638030,-274.94,0.00026676,2]
[368305415,1751106638040,-165.92,0.00028896,2]
[368305416,1751106638052,-2307.0,0.000293,3]
[368305417,1751106638062,-768.92711816,0.000295,21]
[368305418,1751106638072,-768.92711815,0.000295,21]
[368305419,1751106638081,-768.92711815,0.000295,21]
[368305420,1751106638090,-768.92711815,0.000295,21]
[368305421,1751106638099,-768.92711815,0.000295,21]
[368305422,1751106638109,-768.92711815,0.000295,21]
[368305423,1751106638118,-768.92711815,0.000295,21]
[368305424,1751106638127,-768.92711815,0.000295,21]
[368305425,1751106638137,-768.92711815,0.000295,21]
[368305426,1751106638146,-768.92711815,0.000295,21]
[368305427,1751106638156,-768.92711815,0.00029555,21]
[368305428,1751106638165,-150.0,0.0003,2]
[368305429,1751106638175,-5508.0,0.000301,5]
[368305430,1751106638184,-768.92711815,0.00030521,23]
[368305431,1751106638194,-768.92711815,0.00031486,25]
[368305432,1751106638203,-152.0,0.00032329,120]
[368305433,1751106638212,-768.92711815,0.00032452,26]
[368305434,1751106638222,-274.94,0.00033165,2]
[368305436,1751106638231,-768.92711815,0.00033417,28]
[368305438,1751106638240,-224.0,0.0003375,2]
[368305440,1751106638249,-12500.0,0.00033797,5]
[368305442,1751106638259,-768.92711815,0.00034383,30]
[368305444,1751106638268,-168.0,0.00034386,2]
[368305446,1751106638277,-1000.0,0.00034466,7]
[368305448,1751106638286,-1000.0,0.00034603,7]
[368305450,1751106638295,-1000.0,0.0003474,7]
[368305452,1751106638305,-1000.0,0.00034877,7]
[368305454,1751106638314,-9814.84854084,0.00035,2]
[368305456,1751106638323,-1000.0,0.00035014,7]
[368305458,1751106638332,-182.98,0.00035139,2]
[368305460,1751106638342,-1000.0,0.00035151,7]
[368305462,1751106638351,-1000.0,0.00035288,7]
[368305464,1751106638360,-768.92711815,0.00035348,32]
[368305466,1751106638369,-1000.0,0.00035425,7]
[368305468,1751106638379,-1000.0,0.00035562,7]
[368305470,1751106638388,-1000.0,0.00035699,7]
[368305472,1751106638398,-1000.0,0.00035836,7]
[368305475,1751106638416,-1000.0,0.00035973,7]
[368305477,1751106638426,-1000.0,0.0003611,7]
[368305480,1751106638436,-1000.0,0.00036116,2]
[368305482,1751106638447,-1000.0,0.00036247,7]
[368305485,1751106638456,-768.92711815,0.00036314,34]
[368305487,1751106638467,-1000.0,0.00036384,7]
[368305489,1751106638476,-1000.0,0.00036521,7]
[368305491,1751106638486,-1000.0,0.00036658,7]
[368305493,1751106638496,-168.0,0.00036737,2]
[368305495,1751106638505,-1000.0,0.00036795,7]
[368305497,1751106638515,-1000.0,0.00036932,7]
[368305499,1751106638524,-1000.0,0.00037068,7]
[368305501,1751106638533,-1000.0,0.00037205,7]
[368305503,1751106638543,-768.92711815,0.00037279,36]
[368305505,1751106638553,-1000.0,0.00037342,7]
[368305507,1751106638562,-387.352148,0.00037401,16]
[368305509,1751106638572,-355.93,0.00037422,2]
[368305511,1751106638583,-302.0,0.00037423,2]
[368305513,1751106638592,-18401.0,0.00037445,2]
[368305515,1751106638602,-666.0,0.00037448,2]
[368305517,1751106638612,-1000.0,0.00037479,7]
[368305519,1751106638622,-595.26603,0.0003752,2]
[368305521,1751106638631,-595.26604,0.0003752,2]
[368305523,1751106638641,-595.26604,0.0003752,2]
[368305525,1751106638651,-595.26604,0.0003752,2]
[368305527,1751106638661,-595.26604,0.0003752,2]
[368305529,1751106638670,-595.26604,0.0003752,2]
[368305531,1751106638680,-2919.61108583,0.000378,5]
[368305533,1751106638690,-1866.1958896,0.00037899,2]
[368305536,1751106638700,-251.05753186,0.00037999,2]
[368305538,1751106638710,-500.0,0.00037999,7]
[368305540,1751106638724,-501.22824006,0.00037999,15]
[368305542,1751106638733,-563.8892603,0.00037999,7]
[368305544,1751106638743,-100000.0,0.00038,3]
[368305546,1751106638752,-899.99999903,0.00038,39]
[368305548,1751106638762,-152.284232,0.00038,7]
[368305550,1751106638772,-151.0,0.00038,7]
[368305552,1751106638782,-155.4929541,0.00038102,2]
[368305554,1751106638793,-224.0,0.00038125,11]
[368305556,1751106638804,-835.41973025,0.00038164,2]
[368305558,1751106638814,-155.4929541,0.00038169,2]
[368305560,1751106638824,-168.0,0.00038203,2]
[368305562,1751106638833,-155.4929541,0.00038237,2]
[368305564,1751106638844,-768.92711815,0.00038245,38]
[368305566,1751106638853,-1000.0,0.00038256,2]
[368305568,1751106638863,-231.0,0.00038279,2]
[368305570,1751106638873,-156.95,0.000383,17]
[368305572,1751106638883,-155.4929541,0.00038304,2]
[368305574,1751106638892,-313.88,0.0003831,17]
[368305576,1751106638902,-270.0,0.0003832,120]
[368305578,1751106638912,-150.0,0.0003832,2]
[368305580,1751106638921,-150.0,0.0003832,60]
[368305582,1751106638932,-150.0,0.0003832,2]
[368305584,1751106638942,-150.0,0.0003832,60]
[368305586,1751106638951,-150.0,0.0003832,60]
[368305588,1751106638961,-150.69237325,0.0003832,60]
[368305590,1751106638970,-151.99114384,0.0003832,60]
[368305592,1751106638979,-233.98935785,0.0003832,60]
[368305595,1751106638990,-150.0,0.0003832,60]
[368305597,1751106639000,-1162.0,0.00038322,2]
[368305599,1751106639010,-1025.0,0.00038356,30]
[368305601,1751106639020,-500.0,0.00038356,30]
[368305603,1751106639029,-500.0,0.00038356,30]
[368305605,1751106639039,-4044.0,0.00038356,60]
[368305607,1751106639048,-150.0,0.00038356,2]
[368305609,1751106639057,-150.0,0.00038356,30]
[368305611,1751106639066,-1000.0,0.00038356,30]
[368305613,1751106639076,-1000.0,0.00038356,30]
[368305615,1751106639085,-504.18518811,0.00038356,30]
[368305618,1751106639108,-495.81481189,0.00038356,30]
[368305620,1751106639118,-1000.0,0.00038356,30]
[368305622,1751106639127,-1000.0,0.00038356,30]
[368305624,1751106639137,-1000.0,0.00038356,30]
[368305626,1751106639147,-1000.0,0.00038356,30]
[368305628,1751106639157,-1000.0,0.00038356,30]
[368305630,1751106639167,-1000.0,0.00038356,30]
[368305632,1751106639176,-1000.0,0.00038356,30]
[368305634,1751106639186,-1000.0,0.00038356,30]
[368305636,1751106639196,-1000.0,0.00038356,30]
[368305639,1751106639206,-1000.0,0.00038356,30]
[368305641,1751106639215,-1000.0,0.00038356,30]
[368305643,1751106639225,-1000.0,0.00038356,30]
[368305645,1751106639234,-1000.0,0.00038356,30]
[368305647,1751106639245,-1000.0,0.00038356,30]
[368305649,1751106639254,-1000.0,0.00038356,30]
[368305651,1751106639264,-1000.0,0.00038356,30]
[368305653,1751106639273,-1000.0,0.00038356,30]
[368305655,1751106639283,-1000.0,0.00038356,30]
[368305657,1751106639293,-1000.0,0.00038356,30]
[368305659,1751106639303,-1000.0,0.00038356,30]
[368305661,1751106639312,-1000.0,0.00038356,30]
[368305663,1751106639321,-1000.0,0.00038356,30]
[368305665,1751106639331,-1000.0,0.00038356,30]
[368305667,1751106639340,-1000.0,0.00038356,30]
[368305669,1751106639351,-1000.0,0.00038356,30]
[368305671,1751106639361,-1000.0,0.00038356,30]
[368305673,1751106639371,-1000.0,0.00038356,30]
[368305675,1751106639381,-1000.0,0.00038356,30]
[368305677,1751106639390,-1000.0,0.00038356,30]
[368305679,1751106639400,-1000.0,0.00038356,30]
[368305681,1751106639409,-1000.0,0.00038356,30]
[368305683,1751106639419,-1000.0,0.00038356,30]
[368305685,1751106639428,-1000.0,0.00038356,30]
[368305688,1751106639438,-1000.0,0.00038356,30]